fUST/lending_fUST_20240111
["ID","MTS","AMOUNT","RATE_DAILY","PERIOD"]
[311105854,1704906670832,172.23474005,0.00012319,2]
[311105856,1704906685720,1053.09558093,0.0002,7]
[311105857,1704906705693,241.22970395,0.0002,7]
[311105858,1704906759348,-154.87609912,0.00013681,2]
[311105859,1704906759372,-1172.5308552,0.00013682,2]
[311105860,1704906759394,-154.87609912,0.00015997,2]
[311105861,1704906759416,-154.87609912,0.00015997,2]
[311105862,1704906759437,-154.87609912,0.00015997,2]
[311105863,1704906759458,-947.43868379,0.00015997,2]
[311105864,1704906759479,-245.83104096,0.00015997,2]
[311105865,1704906759501,-159.07724284,0.00015998,2]
[311105866,1704906759523,-284.97198612,0.00015998,2]
[311105867,1704906759549,-266.27745965,0.00015998,2]
[311105868,1704906759571,-174.54706619,0.00015998,2]
[311105869,1704906759593,-2712.67485741,0.00015998,2]
[311105870,1704906759614,-309.65937468,0.00015998,2]
[311105871,1704906759635,-155.07733581,0.00015998,2]
[311105872,1704906759656,-2100.45151675,0.00015998,2]
[311105873,1704906759678,-309.72116731,0.00015998,2]
[311105874,1704906759698,-155.0,0.00015998,2]
[311105875,1704906759719,-2029.97306616,0.00016498,2]
[311105876,1704906759740,-466.69842907,0.00016499,2]
[311105877,1704906759760,-3985.6319565,0.00017131,2]
[311105878,1704906759781,-271.96235488,0.00017596,2]
[311105879,1704906759803,-200.0,0.00017597,2]
[311105880,1704906759825,-10500.0358078,0.00018999,2]
[311105881,1704906759846,-1578.65511595,0.00019,2]
[311105882,1704906759867,-204.0,0.00019356,2]
[311105883,1704906759889,-9179.9,0.0001999,3]
[311105884,1704906759910,-590.11543549,0.0002,2]
[311105885,1704906759931,-665.20950523,0.0002,2]
[311105886,1704906759951,-155.13937456,0.0002,2]
[311105887,1704906759972,-154.87609912,0.0002,2]
[311105888,1704906759993,-676.96253794,0.0002,2]
[311105889,1704906760013,-185.23261357,0.0002,2]
[311105890,1704906760034,-260.869305,0.0002,2]
[311105891,1704906760056,-165918.97541554,0.0002,2]
[311105895,1704907761146,-2034.80072126,0.00014892,2]
[311105896,1704907761166,-290.33714823,0.00014892,2]
[311105897,1704907761187,-2927.32783457,0.00014892,2]
[311105898,1704907761208,-2029.97306616,0.00014893,2]
[311105899,1704907761227,-400.02724112,0.00014893,2]
[311105900,1704907761247,-2808.94906759,0.00014893,2]
[311105901,1704907761268,-36890.05042447,0.00014893,2]
[311105902,1704907761287,-191.01244923,0.00014894,2]
[311105903,1704907761307,-360.7362932,0.00014894,2]
[311105904,1704907761328,-1737.24988191,0.00014894,2]
[311105905,1704907761349,-521.10576847,0.00014894,2]
[311105906,1704907761370,-2873.08771636,0.00014894,2]
[311105907,1704907761391,-554.1621614,0.00014895,2]
[311105908,1704907761412,-242.59429943,0.00014896,2]
[311105909,1704907761433,-860.80550823,0.00014896,2]
[311105910,1704907761454,-642.93704766,0.00014896,2]
[311105911,1704907761476,-34509.99260008,0.00014896,2]
[311105912,1704907772102,-901.68385165,0.00014892,2]
[311105913,1704907772124,-154.86062544,0.00014892,2]
[311105914,1704907772143,-261.7761853,0.00014895,2]
[311105915,1704907772164,-6619.88718013,0.00014896,2]
[311106000,1704907838603,-1781.99121682,0.00013892,2]
[311106001,1704907838662,-207.52200269,0.00013892,2]
[311106002,1704907838672,-154.86062544,0.00013892,2]
[311106003,1704907838684,-587.05108958,0.00013893,2]
[311106004,1704907838693,-154.86062544,0.00013893,2]
[311106005,1704907838702,-167.6003182,0.00013894,2]
[311106006,1704907838711,-360.7362932,0.00014885,2]
[311106007,1704907838721,-400.02724112,0.00014886,2]
[311106008,1704907838730,-7943.71182072,0.00014886,2]
[311106009,1704907838740,-2808.94906759,0.00014886,2]
[311106010,1704907838751,-82514.83287132,0.00014887,2]
[311106011,1704907838763,-451.74832768,0.00014888,2]
[311106012,1704907838773,-19828.39990193,0.00014888,2]
[311106013,1704907838783,-1587.23277287,0.00014889,2]
[311106014,1704907838792,-212.96062918,0.00014891,2]
[311106015,1704907838803,-261.7761853,0.00014893,2]
[311106016,1704907838814,-406.61270587,0.00014894,2]
[311106017,1704907838824,-36890.05042447,0.00014894,2]
[311106018,1704907838833,-750.78974168,0.00014894,2]
[311106019,1704907838842,-242.59429943,0.00014894,2]
[311106020,1704907838852,-587.42061845,0.00014894,2]
[311106021,1704907838861,-2927.32783457,0.00014894,2]
[311106022,1704907838872,-554.1621614,0.00014894,2]
[311106023,1704907838882,-197.0528568,0.00014894,2]
[311106024,1704907838891,-409.95513465,0.00014894,2]
[311106025,1704907838901,-2034.80072126,0.00014894,2]
[311106026,1704907838911,-416.22564237,0.00014894,2]
[311106027,1704907838922,-154.86062544,0.00014894,2]
[311106028,1704907838932,-290.33714823,0.00014898,2]
[311106029,1704907838941,-284.37251424,0.00014906,2]
[311106030,1704907838951,-469.64064105,0.00014907,2]
[311106031,1704907838960,-2100.45151675,0.00014907,2]
[311106032,1704907838969,-2070.35788054,0.00014907,2]
[311106033,1704907838979,-24900.0,0.0001491,2]
[311106034,1704907838989,-154.86062544,0.00015,2]
[311106035,1704907838998,-686.53707421,0.00015,2]
[311106036,1704907839007,-155.39178535,0.00015909,2]
[311106037,1704907839016,-155.01068281,0.00015912,2]
[311106038,1704907839026,-11007.88949272,0.00015912,2]
[311106039,1704907839035,-158.30593028,0.00015912,2]
[311106040,1704907839044,-275.44972625,0.00015912,2]
[311106041,1704907839054,-158.32519524,0.00015912,2]
[311106042,1704907839063,-155.29426556,0.00015912,2]
[311106043,1704907839073,-1213.84589172,0.00015912,2]
[311106044,1704907839082,-155.06275693,0.00015912,2]
[311106045,1704907839092,-282.95929965,0.00015921,2]
[311106046,1704907839102,-181.39110699,0.00015927,2]
[311106047,1704907839111,-271.96235488,0.000165,2]
[311106048,1704907839120,-246.59333994,0.00016935,2]
[311106049,1704907839130,-156.98565569,0.00016946,2]
[311106050,1704907839140,-872.56977946,0.00017235,2]
[311106051,1704907839152,-200.0,0.00017494,2]
[311106052,1704907839162,-246.05359663,0.000178,2]
[311106053,1704907839172,-10500.0358078,0.00017898,2]
[311106054,1704907839181,-159.94916056,0.00018994,2]
[311106055,1704907839191,-181.75090531,0.00018995,2]
[311106056,1704907839200,-309.70577409,0.00018995,2]
[311106057,1704907839209,-155.2553482,0.00018995,2]
[311106058,1704907839218,-154.93801242,0.00018996,2]
[311106059,1704907839228,-434.4673643,0.00018996,2]
[311106060,1704907839237,-212.94703521,0.00018996,2]
[311106061,1704907839246,-1578.65511595,0.00019,2]
[311106062,1704907839255,-197.526484,0.00019178,2]
[311106063,1704907839265,-183.606673,0.00019178,2]
[311106064,1704907839274,-8743.9820779,0.000194,2]
[311106065,1704907839283,-324.16641345,0.000194,2]
[311106066,1704907839292,-1112.08388858,0.000195,2]
[311106067,1704907839302,-295.31895678,0.00019998,2]
[311106068,1704907839311,-246.60692203,0.00019998,2]
[311106069,1704907839320,-911.07817279,0.00019998,2]
[311106070,1704907839330,-241.20350913,0.00019999,2]
[311106071,1704907839340,-155.14218947,0.00019999,2]
[311106072,1704907839349,-117577.15172192,0.0002,2]
[311106073,1704907839359,-270734.30120863,0.0002,2]
[311106074,1704907839368,-236.79527182,0.0002,2]
[311106075,1704907839377,-154.98445203,0.0002,2]
[311106076,1704907839386,-676.96253794,0.0002,2]
[311106077,1704907839396,-154.87609912,0.0002,2]
[311106078,1704907839406,-1195.09669838,0.0002,2]
[311106079,1704907839415,-853.57612089,0.0002,2]
[311106080,1704907839425,-266.19065175,0.0002,2]
[311106081,1704907839435,-168.53910427,0.0002,2]
[311106082,1704907839444,-200.0,0.0002,2]
[311106083,1704907839454,-151.51510611,0.0002,2]
[311106084,1704907839463,-326.73090334,0.00021,2]
[311106085,1704907839473,-324.16641345,0.00021648,2]
[311106086,1704907839482,-166.666666,0.00021918,2]
[311106087,1704907839491,-292.83058016,0.00022,4]
[311106088,1704907839501,-156.86767994,0.00022,2]
[311106089,1704907839511,-4917.8600325,0.00022,2]
[311106090,1704907839522,-3931.75997852,0.00022,2]
[311106091,1704907839531,-166.666666,0.00022431,2]
[311106092,1704907839540,-154.87609912,0.000225,2]
[311106093,1704907839550,-166.666666,0.00022944,2]
[311106094,1704907839559,-9920.80434626,0.00023,2]
[311106095,1704907839568,-2093.08732709,0.00023,2]
[311106096,1704907839578,-494.67238027,0.00023288,2]
[311106097,1704907839587,-382.99451702,0.00023288,2]
[311106098,1704907839597,-500.0,0.00023288,4]
[311106099,1704907839606,-500.0,0.00023288,4]
[311106100,1704907839615,-505.94427557,0.00023288,4]
[311106101,1704907839625,-500.0,0.00023288,4]
[311106102,1704907839634,-288.75660342,0.00023288,4]
[311106103,1704907839643,-408.57155719,0.00023288,4]
[311106104,1704907839653,-166.666666,0.00023456,2]
[311106105,1704907839663,-324.16641345,0.00023897,2]
[311106106,1704907839673,-166.666666,0.00023969,2]
[311106107,1704907839685,-2293.16748545,0.00024,2]
[311106108,1704907839694,-614.01289661,0.00024,2]
[311106109,1704907839703,-166.666666,0.00024482,2]
[311106110,1704907839712,-3000.0,0.00025,2]
[311106111,1704907839722,-4711.08145103,0.00025,2]
[311106112,1704907839731,-155.10911915,0.00025,2]
[311106113,1704907839741,-10793.46523378,0.00025997,2]
[311106114,1704907839750,-525.91402641,0.00026,2]
[311106115,1704907839760,-2126.09470477,0.00026,2]
[311106116,1704907839769,-324.16641345,0.00026145,2]
[311106117,1704907839779,-620.00088096,0.0002673,2]
[311106118,1704907839788,-733.25771754,0.00027,2]
[311106119,1704907839797,-154.86062544,0.00027,2]
[311106120,1704907839807,-719.71125454,0.00027,2]
[311106121,1704907839816,-258605.90714436,0.00027281,2]
[311106122,1704907839825,-190.18647378,0.00027392,2]
[311106123,1704907839834,-294.3543158,0.00027393,2]
[311106124,1704907839844,-203.27409142,0.00027393,2]
[311106125,1704907839853,-560.33964085,0.00027393,2]
[311106126,1704907839862,-198.74018768,0.00027393,2]
[311106127,1704907839872,-254.67774705,0.00027393,2]
[311106128,1704907839881,-155.16656031,0.00027393,2]
[311106129,1704907839890,-301.2405075,0.00027393,2]
[311106130,1704907839899,-882.72082059,0.00027393,2]
[311106131,1704907839909,-309.90933074,0.00027393,2]
[311106132,1704907839919,-2511.34591178,0.00027393,2]
[311106133,1704907839929,-14588.6393464,0.00027394,2]
[311106134,1704907839939,-156.14695862,0.00027395,2]
[311106135,1704907839948,-5686.38333518,0.00027395,2]
[311106136,1704907839959,-20908.29230276,0.00027395,2]
[311106137,1704907839968,-274.16463002,0.00027395,2]
[311106138,1704907839977,-191.70740766,0.00027395,2]
[311106139,1704907839986,-264.48989987,0.00027395,2]
[311106140,1704907839996,-296.51677391,0.00027395,2]
[311106141,1704907840006,-508.93457403,0.00027395,2]
[311106142,1704907840015,-421.96234273,0.00027395,2]
[311106143,1704907840025,-276.46374965,0.00027395,2]
[311106144,1704907840034,-285.67741127,0.00027395,2]
[311106145,1704907840043,-3842.00852888,0.00027395,2]
[311106146,1704907840053,-500.0,0.00027397,2]
[311106147,1704907840062,-500.0,0.00027397,2]
[311106148,1704907840072,-155.0,0.00027397,2]
[311106149,1704907840081,-500.0,0.00027397,2]
[311106150,1704907840091,-500.31,0.00027397,2]
[311106151,1704907840101,-500.0,0.00027397,2]
[311106152,1704907840110,-500.0,0.00027397,2]
[311106153,1704907840120,-342.7753344,0.00027397,2]
[311106154,1704907840129,-500.0,0.00027397,2]
[311106155,1704907840140,-500.0,0.00027397,2]
[311106156,1704907840149,-500.0,0.00027397,2]
[311106157,1704907840159,-500.0,0.00027397,2]
[311106158,1704907840169,-695.44,0.00027397,2]
[311106159,1704907840179,-500.0,0.00027397,2]
[311106160,1704907840188,-500.0,0.00027397,2]
[311106161,1704907840198,-500.0,0.00027397,2]
[311106162,1704907840207,-500.0,0.00027397,2]
[311106163,1704907840217,-500.0,0.00027397,2]
[311106164,1704907840226,-503.49423838,0.00027397,2]
[311106165,1704907840235,-500.0,0.00027397,2]
[311106166,1704907840245,-231.27172654,0.00027397,2]
[311106167,1704907840254,-402.09100132,0.00027397,2]
[311106168,1704907840263,-501.34716716,0.00027397,2]
[311106169,1704907840273,-1081.65,0.00027397,2]
[311106170,1704907840282,-500.0,0.00027397,2]
[311106171,1704907840291,-503.16131874,0.00027397,2]
[311106172,1704907840300,-500.0,0.00027397,2]
[311106173,1704907840309,-500.0,0.00027397,2]
[311106174,1704907840318,-500.0,0.00027397,2]
[311106175,1704907840328,-500.0,0.00027397,2]
[311106176,1704907840337,-500.0,0.00027397,2]
[311106177,1704907840347,-500.0,0.00027397,2]
[311106178,1704907840356,-502.85008081,0.00027397,2]
[311106179,1704907840366,-522.09370799,0.00027397,2]
[311106180,1704907840376,-500.0,0.00027397,2]
[311106181,1704907840386,-502.37533265,0.00027397,2]
[311106182,1704907840396,-500.0,0.00027397,2]
[311106183,1704907840406,-500.0,0.00027397,2]
[311106184,1704907840415,-510.22720106,0.00027397,2]
[311106186,1704907840426,-500.0,0.00027397,2]
[311106187,1704907840438,-500.0,0.00027397,2]
[311106188,1704907840447,-500.0,0.00027397,2]
[311106189,1704907840455,-500.0,0.00027397,2]
[311106190,1704907840466,-500.0,0.00027397,2]
[311106191,1704907840475,-503.20325283,0.00027397,2]
[311106192,1704907840485,-567.41,0.00027397,2]
[311106193,1704907840495,-596.56,0.00027397,2]
[311106195,1704907840504,-500.0,0.00027397,2]
[311106196,1704907840514,-500.0,0.00027397,2]
[311106197,1704907840523,-617.2,0.00027397,2]
[311106198,1704907840533,-500.0,0.00027397,2]
[311106199,1704907840542,-500.0,0.00027397,2]
[311106200,1704907840552,-500.0,0.00027397,2]
[311106202,1704907840561,-500.0,0.00027397,2]
[311106203,1704907840571,-500.0,0.00027397,2]
[311106204,1704907840581,-500.0,0.00027397,2]
[311106205,1704907840590,-500.0,0.00027397,2]
[311106206,1704907840601,-500.0,0.00027397,2]
[311106207,1704907840611,-500.0,0.00027397,2]
[311106208,1704907840624,-500.0,0.00027397,2]
[311106209,1704907840634,-500.0,0.00027397,2]
[311106210,1704907840644,-500.0,0.00027397,2]
[311106211,1704907840654,-501.60375425,0.00027397,2]
[311106212,1704907840664,-506.65770087,0.00027397,2]
[311106213,1704907840781,-500.0,0.00027397,2]
[311106214,1704907840793,-500.0,0.00027397,2]
[311106215,1704907840802,-3633.7,0.00027397,2]
[311106216,1704907840812,-500.0,0.00027397,2]
[311106217,1704907840822,-500.0,0.00027397,2]
[311106218,1704907840831,-500.0,0.00027397,2]
[311106219,1704907840840,-500.0,0.00027397,2]
[311106220,1704907840849,-500.0,0.00027397,2]
[311106221,1704907840859,-573.62,0.00027397,2]
[311106222,1704907840868,-500.0,0.00027397,2]
[311106223,1704907840878,-500.0,0.00027397,2]
[311106224,1704907840887,-500.0,0.00027397,2]
[311106225,1704907840896,-500.0,0.00027397,2]
[311106226,1704907840906,-500.0,0.00027397,2]
[311106227,1704907840915,-500.0,0.00027397,2]
[311106228,1704907840926,-500.0,0.00027397,2]
[311106229,1704907840935,-287.98515762,0.00027397,2]
[311106230,1704907840944,-503.36388571,0.00027397,2]
[311106231,1704907840954,-500.0,0.00027397,2]
[311106232,1704907840963,-500.0,0.00027397,2]
[311106233,1704907840973,-500.0,0.00027397,2]
[311106234,1704907840983,-500.0,0.00027397,2]
[311106235,1704907840993,-1043.63,0.00027397,2]
[311106236,1704907841002,-1311.11,0.00027397,2]
[311106237,1704907841011,-500.0,0.00027397,2]
[311106238,1704907841020,-198.57463764,0.00027397,2]
[311106239,1704907841030,-500.0,0.00027397,2]
[311106240,1704907841040,-500.0,0.00027397,2]
[311106241,1704907841049,-1468.44,0.00027397,2]
[311106242,1704907841059,-500.0,0.00027397,2]
[311106243,1704907841069,-500.0,0.00027397,2]
[311106244,1704907841078,-500.0,0.00027397,2]
[311106245,1704907841088,-626.26495276,0.00027397,2]
[311106246,1704907841097,-500.0,0.00027397,2]
[311106247,1704907841107,-571.51,0.00027397,2]
[311106248,1704907841117,-9076.32,0.00027397,2]
[311106249,1704907841127,-469.88941298,0.00027397,2]
[311106250,1704907841137,-500.0,0.00027397,2]
[311106251,1704907841146,-500.0,0.00027397,2]
[311106252,1704907841156,-528.35,0.00027397,2]
[311106253,1704907841166,-500.0,0.00027397,2]
[311106254,1704907841176,-500.0,0.00027397,2]
[311106255,1704907841185,-1158.88,0.00027397,2]
[311106256,1704907841195,-500.0,0.00027397,2]
[311106257,1704907841205,-500.0,0.00027397,2]
[311106258,1704907841214,-500.0,0.00027397,2]
[311106259,1704907841224,-500.0,0.00027397,2]
[311106261,1704907841234,-500.0,0.00027397,2]
[311106263,1704907841243,-500.0,0.00027397,2]
[311106264,1704907841252,-4768.74,0.00027397,3]
[311106265,1704907841262,-8691.11,0.00027397,3]
[311106266,1704907841272,-500.0,0.00027671,2]
[311106267,1704907841282,-500.0,0.00027671,2]
[311106268,1704907841292,-500.31,0.00027671,2]
[311106269,1704907841302,-537.15148548,0.00027671,2]
[311106270,1704907841311,-500.0,0.00027671,2]
[311106271,1704907841320,-500.0,0.00027671,2]
[311106272,1704907841330,-500.0,0.00027671,2]
[311106273,1704907841340,-500.0,0.00027671,2]
[311106274,1704907841350,-500.0,0.00027671,2]
[311106275,1704907841360,-695.44,0.00027671,2]
[311106276,1704907841370,-500.0,0.00027671,2]
[311106277,1704907841380,-500.0,0.00027671,2]
[311106278,1704907841390,-500.0,0.00027671,2]
[311106279,1704907841400,-500.0,0.00027671,2]
[311106280,1704907841410,-1081.65,0.00027671,2]
[311106281,1704907841419,-500.0,0.00027671,2]
[311106282,1704907841430,-500.0,0.00027671,2]
[311106283,1704907841439,-500.0,0.00027671,2]
[311106284,1704907841448,-500.0,0.00027671,2]
[311106285,1704907841458,-500.0,0.00027671,2]
[311106286,1704907841468,-500.0,0.00027671,2]
[311106287,1704907841480,-500.0,0.00027671,2]
[311106288,1704907841490,-500.0,0.00027671,2]
[311106289,1704907841500,-500.0,0.00027671,2]
[311106290,1704907841510,-567.41,0.00027671,2]
[311106291,1704907841521,-596.56,0.00027671,2]
[311106292,1704907841531,-500.0,0.00027671,2]
[311106293,1704907841541,-617.2,0.00027671,2]
[311106294,1704907841551,-500.0,0.00027671,2]
[311106295,1704907841561,-500.0,0.00027671,2]
[311106296,1704907841571,-500.0,0.00027671,2]
[311106297,1704907841581,-500.0,0.00027671,2]
[311106298,1704907841591,-500.0,0.00027671,2]
[311106299,1704907841601,-500.0,0.00027671,2]
[311106300,1704907841611,-500.0,0.00027671,2]
[311106301,1704907841620,-500.0,0.00027671,2]
[311106302,1704907841630,-451.33434797,0.00027671,2]
[311106303,1704907841640,-500.0,0.00027671,2]
[311106304,1704907841650,-500.0,0.00027671,2]
[311106305,1704907841659,-472.93052492,0.00027671,2]
[311106306,1704907841668,-3633.7,0.00027671,2]
[311106307,1704907841678,-500.0,0.00027671,2]
[311106308,1704907841687,-500.0,0.00027671,2]
[311106309,1704907841696,-500.0,0.00027671,2]
[311106310,1704907841705,-602.12179745,0.00027671,2]
[311106311,1704907841715,-500.0,0.00027671,2]
[311106312,1704907841724,-500.0,0.00027671,2]
[311106313,1704907841733,-501.33305653,0.00027671,2]
[311106314,1704907841743,-500.0,0.00027671,2]
[311106315,1704907841753,-500.0,0.00027671,2]
[311106316,1704907841762,-500.0,0.00027671,2]
[311106317,1704907841771,-500.0,0.00027671,2]
[311106318,1704907841781,-500.0,0.00027671,2]
[311106319,1704907841790,-1043.63,0.00027671,2]
[311106320,1704907841799,-1311.11,0.00027671,2]
[311106321,1704907841808,-500.0,0.00027671,2]
[311106322,1704907841817,-1468.44,0.00027671,2]
[311106323,1704907841827,-161.74440105,0.00027671,2]
[311106324,1704907841836,-500.0,0.00027671,2]
[311106325,1704907841845,-500.0,0.00027671,2]
[311106326,1704907841854,-500.0,0.00027671,2]
[311106327,1704907841864,-571.51,0.00027671,2]
[311106328,1704907841873,-9076.32,0.00027671,2]
[311106329,1704907841882,-500.0,0.00027671,2]
[311106330,1704907841892,-500.0,0.00027671,2]
[311106331,1704907841902,-528.35,0.00027671,2]
[311106332,1704907841911,-500.0,0.00027671,2]
[311106333,1704907841921,-500.0,0.00027671,2]
[311106334,1704907841931,-1158.88,0.00027671,2]
[311106335,1704907841940,-500.0,0.00027671,2]
[311106336,1704907841949,-500.0,0.00027671,2]
[311106337,1704907841958,-500.0,0.00027671,2]
[311106338,1704907841967,-500.0,0.00027671,2]
[311106339,1704907841977,-820.75393755,0.000277,2]
[311106340,1704907841986,-12116.46767157,0.00027914,3]
[311106341,1704907841995,-50000.0,0.00027918,3]
[311106342,1704907842004,-82280.45047774,0.00027918,3]
[311106343,1704907842013,-500.31,0.00027945,2]
[311106344,1704907842022,-500.0,0.00027945,2]
[311106345,1704907842031,-500.0,0.00027945,2]
[311106346,1704907842040,-500.0,0.00027945,2]
[311106347,1704907842049,-500.0,0.00027945,2]
[311106348,1704907842058,-500.0,0.00027945,2]
[311106349,1704907842067,-695.44,0.00027945,2]
[311106350,1704907842077,-500.0,0.00027945,2]
[311106351,1704907842086,-500.0,0.00027945,2]
[311106352,1704907842095,-346.92,0.00027945,2]
[311106353,1704907842105,-500.0,0.00027945,2]
[311106354,1704907842114,-1081.65,0.00027945,2]
[311106355,1704907842122,-500.0,0.00027945,2]
[311106356,1704907842131,-500.0,0.00027945,2]
[311106357,1704907842141,-500.0,0.00027945,2]
[311106358,1704907842151,-500.0,0.00027945,2]
[311106359,1704907842159,-319.32764842,0.00027945,2]
[311106360,1704907842170,-500.0,0.00027945,2]
[311106361,1704907842179,-500.0,0.00027945,2]
[311106362,1704907842187,-500.0,0.00027945,2]
[311106363,1704907842196,-567.41,0.00027945,2]
[311106364,1704907842205,-596.56,0.00027945,2]
[311106365,1704907842214,-500.0,0.00027945,2]
[311106366,1704907842224,-617.2,0.00027945,2]
[311106367,1704907842234,-500.0,0.00027945,2]
[311106368,1704907842243,-500.0,0.00027945,2]
[311106369,1704907842253,-500.0,0.00027945,2]
[311106370,1704907842263,-500.0,0.00027945,2]
[311106371,1704907842272,-500.0,0.00027945,2]
[311106372,1704907842281,-500.0,0.00027945,2]
[311106373,1704907842290,-500.0,0.00027945,2]
[311106374,1704907842299,-500.0,0.00027945,2]
[311106375,1704907842308,-3633.7,0.00027945,2]
[311106376,1704907842317,-500.0,0.00027945,2]
[311106377,1704907842326,-500.0,0.00027945,2]
[311106378,1704907842336,-500.0,0.00027945,2]
[311106379,1704907842345,-500.0,0.00027945,2]
[311106380,1704907842354,-500.0,0.00027945,2]
[311106381,1704907842364,-500.0,0.00027945,2]
[311106382,1704907842373,-500.0,0.00027945,2]
[311106383,1704907842382,-500.0,0.00027945,2]
[311106384,1704907842391,-583.02535419,0.00027945,2]
[311106385,1704907842400,-446.21810783,0.00027945,2]
[311106386,1704907842410,-1043.63,0.00027945,2]
[311106387,1704907842420,-1311.11,0.00027945,2]
[311106388,1704907842429,-500.0,0.00027945,2]
[311106389,1704907842439,-1468.44,0.00027945,2]
[311106390,1704907842448,-500.0,0.00027945,2]
[311106391,1704907842458,-500.0,0.00027945,2]
[311106392,1704907842468,-500.0,0.00027945,2]
[311106393,1704907842478,-571.51,0.00027945,2]
[311106394,1704907842487,-9076.32,0.00027945,2]
[311106395,1704907842497,-500.0,0.00027945,2]
[311106396,1704907842506,-500.0,0.00027945,2]
[311106397,1704907842515,-528.35,0.00027945,2]
[311106398,1704907842524,-500.0,0.00027945,2]
[311106399,1704907842534,-500.0,0.00027945,2]
[311106400,1704907842544,-1158.88,0.00027945,2]
[311106401,1704907842554,-500.0,0.00027945,2]
[311106402,1704907842563,-500.0,0.00027945,2]
[311106403,1704907842572,-500.0,0.00027945,2]
[311106404,1704907842581,-500.0,0.00027945,2]
[311106405,1704907842591,-620.00004405,0.00028066,2]
[311106406,1704907842603,-500.31,0.00028219,2]
[311106407,1704907842613,-232.11960502,0.00028219,2]
[311106408,1704907842622,-220.12160124,0.00028219,2]
[311106409,1704907842633,-500.0,0.00028219,2]
[311106410,1704907842645,-500.0,0.00028219,2]
[311106411,1704907842655,-500.0,0.00028219,2]
[311106412,1704907842666,-695.44,0.00028219,2]
[311106413,1704907842677,-500.0,0.00028219,2]
[311106414,1704907842687,-500.0,0.00028219,2]
[311106415,1704907842696,-500.0,0.00028219,2]
[311106416,1704907842705,-1081.65,0.00028219,2]
[311106417,1704907842715,-500.0,0.00028219,2]
[311106418,1704907842724,-500.0,0.00028219,2]
[311106419,1704907842734,-500.0,0.00028219,2]
[311106420,1704907842743,-500.0,0.00028219,2]
[311106421,1704907842752,-500.0,0.00028219,2]
[311106422,1704907842762,-500.0,0.00028219,2]
[311106423,1704907842771,-567.41,0.00028219,2]
[311106424,1704907842780,-596.56,0.00028219,2]
[311106425,1704907842789,-617.2,0.00028219,2]
[311106426,1704907842799,-500.0,0.00028219,2]
[311106427,1704907842808,-500.0,0.00028219,2]
[311106428,1704907842817,-500.0,0.00028219,2]
[311106430,1704907842826,-500.0,0.00028219,2]
[311106431,1704907842835,-500.0,0.00028219,2]
[311106432,1704907842844,-500.0,0.00028219,2]
[311106433,1704907842853,-500.0,0.00028219,2]
[311106434,1704907842862,-529.27051169,0.00028219,2]
[311106435,1704907842871,-3633.7,0.00028219,2]
[311106436,1704907842880,-500.0,0.00028219,2]
[311106437,1704907842889,-500.0,0.00028219,2]
[311106438,1704907842898,-500.0,0.00028219,2]
[311106439,1704907842907,-500.0,0.00028219,2]
[311106440,1704907842916,-500.0,0.00028219,2]
[311106441,1704907842925,-500.0,0.00028219,2]
[311106442,1704907842934,-1043.63,0.00028219,2]
[311106443,1704907842943,-1311.11,0.00028219,2]
[311106444,1704907842952,-500.0,0.00028219,2]
[311106445,1704907842962,-1468.44,0.00028219,2]
[311106446,1704907842972,-500.0,0.00028219,2]
[311106447,1704907842981,-571.51,0.00028219,2]